bitfinex/quotes_SOLUSD_20251212
["timestamp","ask_amount","ask_price","bid_price","bid_amount"]
[1765520091915,0.1,140.14,140.11,0.7]
[1765520093128,0.1,140.14,140.12,7.13673993]
[1765520093738,0.1,140.14,140.13,0.7]
[1765520093938,0.1,140.14,140.12,7.83673993]
[1765520094145,0.1,140.14,140.12,10.57347967]
[1765520094533,0.1,140.14,140.12,7.13673993]
[1765520095054,0.78,140.14,140.11,7.13717146]
[1765520096038,0.78,140.14,140.1,7.13764798]
[1765520097031,7.91584754,140.14,140.08,7.13877784]
[1765520097227,7.91584754,140.14,140.08,9.87551758]
[1765520097443,0.68,140.13,140.08,9.87551758]
[1765520097647,0.68,140.13,140.08,7.13877784]
[1765520098644,3.41934104,140.13,140.08,7.13877784]
[1765520098838,0.68,140.12,140.08,7.13877784]
[1765520099038,7.81679792,140.12,140.07,24.98702702]
[1765520099448,0.68,140.11,140.07,7.13928749]
[1765520100752,7.81734345,140.11,140.06,7.13979722]
[1765520100929,21.2624643,140.11,140.04,7.13679792]
[1765520101252,0.68,140.1,140.07,0.5]
[1765520102941,7.81775979,140.1,140.07,0.5]
[1765520103164,10.55710083,140.1,140.07,0.5]
[1765520103367,0.68,140.09,140.07,0.5]
[1765520103668,3.41934104,140.09,140.03,7.1409831]
[1765520104041,0.68,140.08,140.03,7.1409831]
[1765520104443,10.5582694,140.08,140.03,7.1409831]
[1765520104644,10.5582694,140.08,140.02,7.14166028]
[1765520104961,0.68,140.07,140.02,7.14166028]
[1765520105168,0.68,140.07,140.01,7.14219297]
[1765520105169,7.82,140.06,140.01,7.14219297]
[1765520105675,0.68,140.05,140.0,7.14269116]
[1765520106549,10.55972985,140.05,139.97,25.68057241]
[1765520106745,28.41049743,140.05,139.99,7.14334768]
[1765520106968,0.68,140.04,139.99,7.14334768]
[1765520107967,3.41934104,140.04,139.98,7.14371525]
[1765520108468,9.8816204,140.02,139.95,20.60242334]
[1765520108766,17.7016204,140.02,139.95,20.60242334]
[1765520108974,0.68,140.01,139.95,20.60242334]
[1765520109267,0.68,140.01,139.96,2.73934104]
[1765520109682,0.68,140.01,139.95,7.14540907]
[1765520109847,0.68,140.01,139.94,2.73934104]
[1765520110050,3.41934104,140.01,139.94,2.73934104]
[1765520110472,0.68,140.0,139.94,2.73934104]
[1765520110671,7.82314222,140.0,139.94,2.73934104]
[1765520111276,0.68,139.99,139.93,10.58533592]
[1765520111462,0.68,139.99,139.94,7.1458801]
[1765520112049,0.68,139.99,139.94,9.88522114]
[1765520112250,0.68,139.99,139.93,9.88569711]
[1765520112649,7.14387769,139.98,139.93,9.88569711]
[1765520113058,0.69,139.97,139.93,7.14635607]
[1765520113782,8.51,139.97,139.93,7.14635607]
[1765520114150,0.69,139.96,139.93,2.73934104]
[1765520114554,0.69,139.96,139.92,9.88628214]
[1765520115190,0.69,139.96,139.93,2.73934104]
[1765520116075,7.82,139.97,139.93,25.01208528]
[1765520116282,14.96442058,140.02,139.96,2.73934104]
[1765520116466,0.69,140.01,139.94,0.67]
[1765520116665,0.69,140.01,139.98,2.73934104]
[1765520116865,0.69,140.01,139.97,2.73934104]
[1765520117472,0.69,140.01,139.95,0.67]
[1765520117690,0.69,140.01,139.96,2.73934104]
[1765520117880,0.69,140.01,139.97,2.73934104]
[1765520118065,0.69,140.04,140.01,7.14234697]
[1765520118271,8.51,140.04,140.02,2.73934104]
[1765520119275,7.13963414,140.07,140.02,2.73934104]
[1765520119276,8.51,140.07,140.03,2.73934104]
[1765520119479,8.51,140.07,140.05,2.73934104]
[1765520119669,0.69,140.06,140.04,2.73934104]
[1765520119870,0.69,140.06,140.02,2.73934104]
[1765520120291,0.69,140.06,140.03,7.14132685]
[1765520121284,0.69,140.06,140.03,9.88066789]
[1765520121604,0.69,140.06,140.04,2.73934104]
[1765520122098,0.69,140.06,140.03,9.88066789]
[1765520122307,0.69,140.06,140.03,27.73398503]
[1765520122489,0.69,140.06,140.03,7.14126991]
[1765520123419,0.69,140.06,140.01,9.8813161]
[1765520123420,7.82987098,140.06,140.01,9.8813161]
[1765520123790,0.72,140.05,140.01,9.8813161]
[1765520123990,0.72,140.05,140.02,7.14181795]
[1765520125215,0.72,140.05,140.01,7.14234697]
[1765520127606,0.72,140.05,140.01,10.56168801]
[1765520127896,0.72,140.05,140.01,7.14234697]
[1765520128619,7.86060867,140.05,139.99,7.14297149]
[1765520128820,2.73934104,140.04,139.98,7.14380176]
[1765520129020,3.45934104,140.04,139.96,2.73934104]
[1765520129197,7.86132685,140.03,139.97,7.14438808]
[1765520129522,7.82,140.02,139.97,7.14438808]
[1765520129696,7.82,140.02,139.96,0.68]
[1765520129697,8.54,140.02,139.96,7.14478119]
[1765520129898,0.72,140.01,139.96,7.14478119]
[1765520130708,7.86255426,140.01,139.96,7.14478119]
[1765520131113,0.72,140.0,139.96,7.14478119]
[1765520132220,7.86296119,140.0,139.95,7.14528743]
[1765520132727,0.72,139.99,139.94,7.14575541]
[1765520133436,7.82,139.98,139.94,7.14575541]
[1765520133847,0.72,139.97,139.93,7.14643035]
[1765520134442,14.96398493,139.98,139.93,7.14643035]
[1765520134443,7.82,139.98,139.94,2.73934104]
[1765520134655,8.54,139.98,139.94,2.73934104]
[1765520135225,0.72,139.97,139.93,10.56577139]
[1765520135863,0.72,139.97,139.93,9.88577139]
[1765520136017,7.86446144,139.97,139.93,7.14643035]
[1765520136350,7.86448286,139.97,139.93,7.14643035]
[1765520136531,0.72,139.96,139.92,7.14682583]
[1765520137743,0.72,139.96,139.93,7.1463616]
[1765520138131,8.54,139.98,139.94,2.73934104]
[1765520138336,0.72,139.97,139.94,2.73934104]
[1765520138535,0.72,139.97,139.93,9.88570264]
[1765520138947,0.72,139.97,139.89,0.68]
[1765520139146,0.72,139.97,139.94,2.73934104]
[1765520139754,0.72,139.97,139.94,2.74386406]
[1765520139955,0.72,139.97,139.94,9.88978373]
[1765520141453,0.72,139.97,139.95,9.8892416]
[1765520141755,7.82,139.99,139.96,7.30303278]
[1765520141954,0.72,140.0,139.96,0.68]
[1765520142142,0.72,140.0,139.98,2.74386406]
[1765520143038,0.72,140.0,139.98,9.8873282]
[1765520144164,0.72,140.0,139.98,7.14346414]
[1765520144361,0.72,140.0,139.97,7.14426034]
[1765520144742,0.7,140.03,139.99,2.74386406]
[1765520145246,0.7,140.03,139.97,7.14426034]
[1765520145853,0.7,140.03,139.98,4.56749213]
[1765520146056,0.7,140.03,139.97,7.14426034]
[1765520146257,7.84177435,140.03,139.97,7.14426034]
[1765520146457,7.84177435,140.03,139.97,9.8881244]
[1765520146780,0.7,140.02,139.98,4.56972062]
[1765520147072,0.7,140.02,139.97,7.14426034]
[1765520148247,0.7,140.02,139.94,23.55650224]
[1765520148248,12.12866147,140.02,139.94,17.8643374]
[1765520148448,0.7,140.01,139.95,16.00670875]
[1765520148653,0.7,140.01,139.94,11.4321997]
[1765520148654,4.98636197,140.01,139.94,11.4321997]
[1765520148974,4.98636197,140.01,139.95,11.72231056]
[1765520149159,0.7,140.0,139.95,7.14525358]
[1765520149357,7.82,139.99,139.95,7.14525358]
[1765520149766,0.7,139.98,139.95,7.14525358]
[1765520150681,0.7,140.02,139.97,4.28636197]
[1765520150852,0.7,140.01,139.98,4.57613473]
[1765520151053,0.7,140.01,139.95,29.29513823]
[1765520151254,0.7,140.01,139.96,4.57637419]
[1765520151461,0.7,140.01,139.97,4.57637419]
[1765520151674,0.7,140.01,139.96,4.28636197]
[1765520151866,0.7,140.01,139.97,4.57752999]
[1765520152072,0.7,140.01,139.97,4.97636197]
[1765520152276,0.7,140.01,139.98,4.28636197]
[1765520152586,0.7,140.01,139.97,0.69]
[1765520152785,14.9623134,140.02,139.98,9.55286214]
[1765520153086,15.6623134,140.02,139.98,4.28636197]
[1765520153284,15.6623134,140.02,139.97,11.43067945]
[1765520153285,0.7,140.01,139.97,11.43067945]
[1765520154395,15.65979722,140.06,140.01,7.14234697]
[1765520154699,15.65979722,140.06,140.02,4.28636197]
[1765520154862,0.7,140.05,140.02,4.28636197]
[1765520155267,0.7,140.05,140.01,12.11870894]
[1765520155979,7.8403325,140.05,140.01,11.42870894]
[1765520157371,7.82,140.06,140.03,4.28636197]
[1765520157688,8.52,140.06,140.02,4.97636197]
[1765520158491,15.65982852,140.06,140.02,4.97636197]
[1765520158785,0.7,140.05,140.01,4.28636197]
[1765520159583,0.7,140.05,140.01,12.11853382]
[1765520159988,0.7,140.05,139.98,0.83216157]
[1765520160302,0.7,140.05,140.0,4.28636197]
[1765520160303,7.82,140.04,140.0,4.28636197]
[1765520160470,7.82,140.04,139.99,13.09630689]
[1765520160682,0.7,140.03,139.99,4.97636197]
[1765520160995,0.7,140.03,139.97,11.43057608]
[1765520161187,0.7,140.03,139.98,4.57507514]
[1765520161386,0.7,140.03,139.97,7.14396219]
[1765520161601,8.52,140.04,140.0,4.28636197]
[1765520161920,8.52,140.04,139.99,11.42945427]
[1765520162105,0.7,140.03,139.99,12.11945427]
[1765520162302,0.7,140.03,139.99,7.1430923]
[1765520162501,0.7,140.03,139.98,7.14378139]
[1765520162815,7.14183688,140.02,139.98,7.14378139]
[1765520163313,7.84183688,140.02,139.98,7.83378139]
[1765520163605,7.84183688,140.02,139.98,4.28636197]
[1765520164187,7.84183688,140.02,139.99,4.28636197]
[1765520164794,7.84183688,140.02,139.98,0.69]
[1765520164996,7.84183688,140.02,139.99,4.28636197]
[1765520165190,7.84183688,140.02,139.98,4.28636197]
[1765520165395,0.7,140.01,139.98,11.43017564]
[1765520165908,0.7,140.01,139.96,11.43090437]
[1765520166126,7.82,140.0,139.97,4.58047479]
[1765520166289,7.82,140.0,139.96,11.43090437]
[1765520166613,0.7,139.99,139.97,4.58170854]
[1765520166914,0.7,139.99,139.96,11.43090437]
[1765520167095,0.7,139.99,139.97,4.58172734]
[1765520167300,0.7,139.99,139.96,4.28636197]
[1765520167814,0.7,139.99,139.96,11.43122542]
[1765520168524,7.84346294,139.99,139.96,4.28636197]
[1765520168927,7.82,140.0,139.98,4.28636197]
[1765520169098,0.7,140.02,139.99,4.28636197]
[1765520169304,7.82,140.01,139.99,11.42939752]
[1765520169503,8.52,140.01,139.98,11.43006612]
[1765520170105,7.82,140.01,139.98,4.28636197]
[1765520170321,8.52,140.01,139.98,4.28636197]
[1765520171133,17.84867988,140.07,140.0,4.28636197]
[1765520171440,15.65994253,140.06,140.02,4.28636197]
[1765520171746,15.65994253,140.06,139.99,0.69]
[1765520171747,15.65994253,140.06,140.0,11.42906402]
[1765520172039,7.82,140.05,140.02,11.42789248]
[1765520172240,7.82,140.05,140.03,4.28636197]
[1765520172748,7.82,140.05,140.02,7.14153051]
[1765520172749,8.52,140.05,140.02,11.42789248]
[1765520173322,7.82,140.05,140.02,11.42789248]
[1765520173524,7.82,140.06,140.04,4.28636197]
[1765520175342,7.82,140.06,140.04,11.42699474]
[1765520175937,7.82,140.06,140.04,4.28636197]
[1765520176145,7.82,140.06,140.02,17.8545922]
[1765520176146,0.68,140.05,140.02,11.42804518]
[1765520176343,0.68,140.05,140.03,11.42755322]
[1765520177651,7.82,140.06,140.03,11.42755322]
[1765520177948,8.5,140.06,140.03,4.28636197]
[1765520178146,8.5,140.06,140.02,7.14171127]
[1765520178346,8.5,140.06,140.03,4.28636197]
[1765520178543,0.68,140.05,140.02,7.14171127]
[1765520178739,0.68,140.05,140.01,0.14216157]
[1765520178942,4.28636197,140.04,139.98,7.14350067]
[1765520179158,0.68,140.05,139.99,8.86297832]
[1765520179341,0.68,140.04,139.99,4.28636197]
[1765520179532,0.68,140.04,139.99,4.08836197]
[1765520179736,7.14132685,140.03,139.99,4.28636197]
[1765520180052,7.82,140.02,139.99,4.28636197]
[1765520180239,8.47,140.02,139.99,4.28636197]
[1765520180763,8.47,140.02,139.99,11.42962756]
[1765520181260,8.47,140.02,139.99,11.42797182]
[1765520181451,0.65,140.01,139.97,0.68]
[1765520181756,7.14285714,140.0,139.94,9.97687107]
[1765520181946,7.14285714,140.0,139.92,0.68]
[1765520182133,0.65,139.99,139.93,4.5836524]
[1765520182335,7.82,139.98,139.92,0.68]
[1765520182535,7.82,139.98,139.93,4.58398814]
[1765520182731,4.28470623,139.96,139.9,4.28470623]
[1765520183268,0.65,139.97,139.9,4.28470623]
[1765520183269,0.65,139.95,139.9,4.28470623]
[1765520183455,7.82,139.94,139.92,4.28470623]
[1765520183855,0.65,139.97,139.93,4.28470623]
[1765520184052,17.85624539,140.01,139.95,4.28470623]
[1765520184260,0.65,139.99,139.95,4.28470623]
[1765520184453,0.65,139.99,139.93,0.68]
[1765520184756,0.65,139.99,139.93,4.28470623]
[1765520185568,4.93470623,139.99,139.92,4.28470623]
[1765520185772,4.93470623,139.98,139.91,4.28470623]
[1765520185957,18.5255788,139.97,139.89,31.59721023]
[1765520186271,7.82,139.96,139.9,23.11455148]
[1765520186469,8.47,139.96,139.9,18.52911427]
[1765520186670,0.65,139.95,139.9,18.52911427]
[1765520187261,7.79586354,139.95,139.9,19.20911427]
[1765520187574,7.79586354,139.95,139.9,7.82792355]
[1765520187770,7.79586354,139.95,139.89,24.42828192]
[1765520187771,0.65,139.94,139.87,6.37216484]
[1765520188065,0.65,139.94,139.88,4.58360775]
[1765520188361,0.65,139.94,139.89,4.58360775]
[1765520188564,0.65,139.94,139.88,11.38119072]
[1765520188769,0.65,139.94,139.89,4.58130063]
[1765520188938,0.65,139.94,139.89,11.38119072]
[1765520189142,7.14643035,139.93,139.87,7.82937272]
[1765520189341,7.82,139.92,139.88,4.58093936]
[1765520189563,7.82,139.92,139.88,18.52997987]
[1765520189564,8.47,139.92,139.88,18.52997987]
[1765520189770,17.86233956,139.96,139.89,5.25867893]
[1765520189771,7.82,139.94,139.89,5.25867893]
[1765520189967,7.82,139.94,139.92,11.38119072]
[1765520190172,7.82,139.94,139.91,11.38119072]
[1765520190173,8.47,139.94,139.91,11.38119072]
[1765520190357,0.65,139.93,139.91,11.38119072]
[1765520190556,0.65,139.93,139.9,11.38119072]
[1765520191464,7.79656447,139.93,139.88,11.38119072]
[1765520191666,25.66264036,139.93,139.87,11.38119072]
[1765520191970,12.03119072,139.92,139.85,11.58119072]
[1765520192274,12.03119072,139.92,139.81,0.2]
[1765520192275,21.85703612,139.83,139.81,0.2]
[1765520192443,13.0470912,139.78,139.67,7.15961512]
[1765520192773,19.20119072,139.77,139.69,11.38119072]
[1765520192970,7.82,139.8,139.76,11.38119072]
[1765520193152,7.82,139.8,139.73,25.04830744]
[1765520193353,0.65,139.79,139.75,11.38119072]
[1765520194269,12.03119072,139.79,139.73,7.15665927]
[1765520194464,12.03119072,139.79,139.72,7.15716245]
[1765520194667,11.38119072,139.77,139.7,0.68]
[1765520194868,7.82,139.76,139.71,7.15760806]
[1765520195053,8.47,139.76,139.71,7.15760806]
[1765520195255,0.65,139.75,139.71,7.15760806]
[1765520196556,7.80566197,139.75,139.7,7.83811659]
[1765520197153,0.65,139.74,139.69,7.15870856]
[1765520197377,0.65,139.74,139.68,25.73723434]
[1765520198154,0.65,139.74,139.68,37.11842506]
[1765520198364,0.65,139.74,139.68,25.73723434]
[1765520198560,12.03119072,139.74,139.68,25.73723434]
[1765520198973,0.65,139.74,139.68,25.73723434]
[1765520199785,12.03119072,139.74,139.68,25.73723434]
[1765520200176,0.65,139.73,139.68,25.73723434]
[1765520200379,7.82,139.72,139.68,25.73723434]
[1765520200895,7.82,139.72,139.68,7.83918165]
[1765520201086,8.47,139.72,139.68,7.83918165]
[1765520203890,7.82,139.72,139.67,25.05906779]
[1765520204076,7.82,139.72,139.68,0.71]
[1765520204473,8.51,139.72,139.68,0.71]
[1765520206093,8.51,139.72,139.69,7.15870856]
[1765520206695,19.89119072,139.72,139.68,7.86915929]
[1765520207189,12.07119072,139.71,139.68,7.15915929]
[1765520207695,0.69,139.7,139.67,7.1596192]
[1765520208385,8.53,139.78,139.71,0.28432314]
[1765520208575,8.53,139.78,139.72,7.02995272]
[1765520208769,7.84,139.78,139.73,16.12422078]
[1765520208969,7.84154115,139.83,139.76,7.02995272]
[1765520209188,8.53,139.82,139.76,7.02995272]
[1765520209398,0.69,139.88,139.81,7.02995272]
[1765520209571,0.69,139.87,139.8,8.80994492]
[1765520209776,0.69,139.87,139.8,9.80426806]
[1765520209986,7.02995272,139.86,139.8,9.80426806]
[1765520210295,0.69,139.87,139.81,14.18251691]
[1765520210296,14.86970032,139.87,139.81,14.18251691]
[1765520210486,14.86995272,139.86,139.79,7.86325014]
[1765520210684,7.02995272,139.84,139.78,7.02995272]
[1765520211094,7.71995272,139.83,139.77,14.89444019]
[1765520211293,7.84,139.82,139.78,14.18397576]
[1765520211612,7.84,139.82,139.75,34.82305585]
[1765520211613,7.84,139.82,139.79,14.18332648]
[1765520212080,7.84,139.82,139.79,14.89332648]
[1765520212280,7.84,139.82,139.77,7.73995272]
[1765520212494,0.69,139.81,139.77,7.73995272]
[1765520212803,0.69,139.81,139.77,0.71]
[1765520213295,0.69,139.81,139.76,14.18507387]
[1765520213296,0.69,139.81,139.76,7.02995272]
[1765520213505,7.71995272,139.81,139.75,7.73995272]
[1765520213701,7.02995272,139.8,139.74,14.18599197]
[1765520213876,7.71995272,139.8,139.74,14.18599197]
[1765520214082,0.69,139.79,139.74,14.18599197]
[1765520214282,7.15409929,139.78,139.74,7.15603925]
[1765520214483,7.15409929,139.78,139.74,14.89599197]
[1765520214883,13.0470912,139.83,139.74,14.89599197]
[1765520214884,13.0470912,139.83,139.75,0.71]
[1765520215083,7.82,139.84,139.81,7.02995272]
[1765520215483,7.82,139.84,139.79,7.73995272]
[1765520215777,0.69,139.83,139.78,7.02995272]
[1765520216300,14.18251691,139.81,139.75,22.73527401]
[1765520216506,14.18251691,139.81,139.76,0.71]
[1765520216975,0.69,139.8,139.76,0.71]
[1765520217314,15.66340003,139.8,139.76,0.71]
[1765520217600,15.66340003,139.8,139.72,20.8870912]
[1765520217601,22.69335275,139.8,139.74,14.89607875]
[1765520217781,22.69335275,139.8,139.74,14.18607875]
[1765520217982,15.66340003,139.8,139.75,0.71]
[1765520218182,22.69335275,139.8,139.75,0.71]
[1765520218791,7.71995272,139.79,139.75,0.71]
[1765520218988,0.69,139.79,139.75,0.71]
[1765520219293,7.15409929,139.78,139.73,14.89653557]
[1765520219491,7.15409929,139.78,139.74,0.71]
[1765520219809,0.69,139.78,139.74,7.73995272]
[1765520220521,7.02995272,139.76,139.71,7.02995272]
[1765520220808,7.82,139.76,139.71,7.73995272]
[1765520221108,8.51,139.76,139.72,0.71]
[1765520221313,15.66537004,139.76,139.72,0.71]
[1765520221677,15.66537004,139.76,139.7,7.02995272]
[1765520221678,0.69,139.75,139.7,7.02995272]
[1765520221880,7.02995272,139.74,139.69,0.71]
[1765520222102,7.02995272,139.74,139.65,17.88628067]
[1765520222103,7.02995272,139.73,139.67,14.89930893]
[1765520222382,7.82,139.72,139.68,14.18703732]
[1765520222600,7.82,139.71,139.68,14.18703732]
[1765520222806,7.82,139.71,139.68,7.15917386]
[1765520222977,7.82,139.71,139.68,7.86917386]
[1765520223299,7.82,139.71,139.64,8.80994492]
[1765520223300,14.18657202,139.69,139.64,8.80994492]
[1765520223481,7.02786346,139.67,139.63,0.71]
[1765520223684,14.86786346,139.67,139.63,0.71]
[1765520223892,7.84,139.67,139.63,0.71]
[1765520224706,7.84,139.67,139.63,7.87138212]
[1765520225010,7.84,139.67,139.64,7.16102868]
[1765520225194,7.84,139.67,139.64,0.71]
[1765520225710,14.87458458,139.73,139.66,7.02786346]
[1765520226003,7.02786346,139.69,139.64,0.71]
[1765520226214,7.02786346,139.67,139.62,0.2]
[1765520226427,7.02786346,139.65,139.62,0.2]
[1765520226785,7.02786346,139.64,139.62,0.2]
[1765520226986,7.02786346,139.63,139.62,0.2]
[1765520227219,7.71786346,139.63,139.62,0.2]
[1765520227518,14.87964817,139.63,139.62,0.2]
[1765520227883,7.85178471,139.63,139.62,0.2]
[1765520228090,22.71964817,139.63,139.62,0.2]
[1765520231306,14.87964817,139.63,139.62,0.2]
[1765520231822,22.71964817,139.63,139.62,0.2]
[1765520232027,14.87964817,139.63,139.62,0.2]
[1765520232214,22.71964817,139.63,139.62,0.2]
[1765520234128,22.71964817,139.63,139.62,1e-08]
[1765520235326,14.87964817,139.63,139.62,1e-08]
[1765520235630,22.71964817,139.63,139.62,1e-08]
[1765520237312,11.9615488,139.67,139.62,1e-08]
[1765520237313,7.16024631,139.66,139.62,0.66000001]
[1765520237504,7.84,139.65,139.62,0.66000001]
[1765520237826,15.00094765,139.65,139.62,0.66000001]
[1765520238912,22.73881111,139.65,139.62,1e-08]
[1765520239429,7.84,139.66,139.64,8.80994492]
[1765520239727,7.84,139.66,139.65,0.67]
[1765520240423,14.86786346,139.66,139.62,1e-08]
[1765520240636,22.02824639,139.66,139.62,0.67000001]
[1765520241004,7.69786346,139.65,139.62,1e-08]
[1765520242009,14.85889574,139.65,139.62,1e-08]
[1765520242608,7.02786346,139.64,139.62,1e-08]
[1765520242809,7.84,139.63,139.62,1e-08]
[1765520243736,15.00178471,139.63,139.62,1e-08]
[1765520245105,7.84,139.63,139.62,1e-08]
[1765520245509,15.00178471,139.63,139.62,1e-08]
[1765520246228,22.02964817,139.63,139.62,1e-08]
[1765520246418,22.69964817,139.63,139.62,1e-08]
[1765520249336,31.79391623,139.63,139.62,1e-08]
[1765520249712,13.0470912,139.61,139.6,1e-08]
[1765520249916,7.02786346,139.61,139.6,1e-08]
[1765520250141,16.79213152,139.61,139.6,1e-08]
[1765520250433,13.0470912,139.58,139.56,0.2]
[1765520250734,14.86786346,139.57,139.56,0.2]
[1765520250938,27.91495466,139.57,139.56,0.2]
[1765520251132,28.58495466,139.57,139.56,0.2]
[1765520251338,35.74981816,139.57,139.56,0.2]
[1765520252422,22.70272696,139.57,139.56,0.2]
[1765520252936,9.76426806,139.56,139.55,1e-08]
[1765520253116,16.79213152,139.56,139.55,1e-08]
[1765520253317,23.28750841,139.56,139.54,1e-08]
[1765520253517,22.14135926,139.53,139.49,0.2]
[1765520253718,20.07495466,139.5,139.49,0.2]
[1765520253918,20.07495466,139.5,139.49,0.87]
[1765520253919,7.84,139.5,139.49,0.87]
[1765520254133,7.84,139.5,139.49,0.2]
[1765520254319,14.86786346,139.5,139.49,0.2]
[1765520254734,7.84,139.5,139.49,0.2]
[1765520254923,7.02786346,139.52,139.49,0.2]
[1765520255120,7.84,139.51,139.49,0.87]
[1765520255626,13.0470912,139.53,139.5,0.67]
[1765520255845,7.84,139.52,139.5,0.67]
[1765520256840,7.84,139.52,139.49,0.2]
[1765520257054,7.02786346,139.51,139.49,0.87]
[1765520257346,7.02786346,139.5,139.49,0.2]
[1765520257554,20.07495466,139.5,139.49,0.2]
[1765520258348,15.00747067,139.52,139.49,0.87]
[1765520258559,7.84,139.51,139.49,0.87]
[1765520258758,7.84,139.5,139.49,7.36872837]
[1765520258937,7.84,139.5,139.49,0.2]
[1765520259258,7.84,139.5,139.49,8.03893538]
[1765520259933,7.02786346,139.53,139.49,8.03893538]
[1765520260136,7.84,139.52,139.5,0.67]
[1765520260660,14.19481053,139.53,139.5,0.67]
[1765520260958,7.84,139.51,139.5,0.67]
[1765520261159,14.86786346,139.51,139.49,0.2]
[1765520261347,14.86786346,139.51,139.49,0.87]
[1765520261551,7.84,139.51,139.49,0.87]
[1765520261960,7.84,139.51,139.5,0.67]
[1765520263460,14.86786346,139.51,139.49,0.2]
[1765520263665,20.73495466,139.5,139.49,0.2]
[1765520263863,7.16758378,139.52,139.49,0.2]
[1765520263864,14.19544724,139.52,139.49,0.2]
[1765520264065,0.66,139.53,139.5,0.69]
[1765520264066,7.84,139.51,139.5,0.69]
[1765520265241,7.84,139.51,139.5,7.85845878]
[1765520265542,7.84,139.51,139.49,0.2]
[1765520265743,7.84,139.51,139.49,0.89]
[1765520266264,7.84,139.51,139.49,8.05891326]
[1765520266467,7.70881217,139.5,139.49,0.2]
[1765520267064,14.88881217,139.5,139.49,0.2]
[1765520267269,7.84,139.5,139.49,0.2]
[1765520267569,14.88881217,139.5,139.49,0.2]
[1765520267952,19.29947266,139.5,139.49,0.2]
[1765520270649,7.16548206,139.56,139.49,8.05897268]
[1765520270851,11.45947266,139.54,139.49,8.05897268]
[1765520271068,11.45947266,139.53,139.49,8.05897268]
[1765520271266,7.84,139.52,139.49,8.05897268]
[1765520271564,7.84,139.52,139.5,0.69]
[1765520271767,7.84,139.52,139.51,7.16794495]
[1765520272151,7.84,139.52,139.51,7.85794495]
[1765520274999,7.84,139.52,139.49,18.81243171]
[1765520275199,7.84,139.52,139.51,7.16794495]
[1765520275500,19.29947266,139.52,139.49,0.89]
[1765520276303,7.84,139.52,139.5,7.16844187]
[1765520276997,7.84,139.52,139.5,7.85844187]
[1765520277770,7.84,139.52,139.51,0.69]
[1765520278371,0.66,139.61,139.52,8.80994492]
[1765520278580,19.29947266,139.6,139.53,12.4337958]
[1765520278790,12.11947266,139.61,139.54,36.54188629]
[1765520279087,11.45947266,139.61,139.55,20.55374072]
[1765520279390,7.84,139.6,139.55,21.24374072]
[1765520279588,7.84,139.59,139.56,0.69]
[1765520279895,7.84,139.58,139.56,0.69]
[1765520280365,0.76,139.66,139.58,0.28432314]
[1765520280569,0.1,139.66,139.62,0.28432314]
[1765520280794,19.39947266,139.66,139.63,7.16178471]
[1765520281005,7.94,139.66,139.63,7.16178471]
[1765520281297,7.94,139.66,139.64,0.69]
[1765520281679,0.1,139.66,139.65,20.55374072]
[1765520281989,7.84,139.69,139.68,22.14135926]
[1765520282178,7.84,139.71,139.68,24.50656386]
[1765520282380,7.84,139.71,139.7,9.09426806]
[1765520282603,7.84,139.71,139.7,20.55374072]
[1765520282807,7.84,139.71,139.7,28.40193685]
[1765520282991,11.45947266,139.77,139.7,46.29742718]
[1765520283184,7.84,139.76,139.71,0.69]
[1765520283389,19.29947266,139.76,139.71,0.69]
[1765520284815,27.1146289,139.76,139.71,7.84762244]
[1765520285006,19.29947266,139.76,139.71,7.84762244]
[1765520285182,7.84,139.76,139.72,0.69]
[1765520286116,19.29947266,139.76,139.72,7.84681668]
[1765520286610,7.84,139.76,139.72,7.84681668]